bitfinex-derivatives/quotes_SOLF0:USTF0_20250803
["timestamp","ask_amount","ask_price","bid_price","bid_amount"]
[1754247359805,6.1828,161.73,161.71,3.22]
[1754247360004,3.35,161.72,161.71,3.22]
[1754247361309,3.35,161.72,161.7,9.44022605]
[1754247362806,6.1832,161.72,161.7,9.44022605]
[1754247363009,3.35,161.71,161.66,123.72022605]
[1754247363411,3.35,161.74,161.66,123.72022605]
[1754247363714,3.35,161.72,161.64,9.44022605]
[1754247363914,3.35,161.7,161.63,8.42501075]
[1754247364114,3.35,161.68,161.63,3.22]
[1754247364309,3.35,161.66,161.64,9.44022605]
[1754247364611,13.83205019,161.79,161.64,9.44022605]
[1754247364612,3.35,161.72,161.65,3.22]
[1754247364812,3.35,161.7,161.67,3.22]
[1754247365114,3.35,161.68,161.67,3.22]
[1754247365304,8.09680112,161.68,161.67,3.22]
[1754247365509,3.35,161.68,161.67,3.22]
[1754247365704,3.35,161.68,161.66,6.22022605]
[1754247365909,3.35,161.67,161.65,3.22]
[1754247368009,6.1847,161.68,161.65,9.4058]
[1754247368314,3.35,161.66,161.65,9.4058]
[1754247368713,3.35,161.66,161.65,3.22]
[1754247369718,3.35,161.66,161.65,9.4058]
[1754247371918,3.35,161.66,161.65,3.22]
[1754247372518,3.35,161.66,161.65,9.4058]
[1754247373615,3.49,161.68,161.66,6.1853]
[1754247373817,3.49,161.68,161.67,3.23]
[1754247375514,3.49,161.68,161.66,6.1853]
[1754247375720,3.49,161.68,161.66,3.23]
[1754247376220,3.49,161.68,161.65,6.1857]
[1754247376624,3.49,161.68,161.65,9.4157]
[1754247378823,6.1847,161.68,161.64,12.40622605]
[1754247379120,3.49,161.67,161.64,12.40622605]
[1754247379618,3.49,161.67,161.64,15.63622605]
[1754247380621,3.49,161.67,161.65,3.23]
[1754247385020,6.1851,161.67,161.64,12.40622605]
[1754247385224,3.49,161.66,161.64,9.45022605]
[1754247386219,6.1851,161.67,161.64,12.40642605]
[1754247386425,6.1847,161.68,161.65,3.23]
[1754247387019,6.1851,161.67,161.65,3.23]
[1754247387223,3.49,161.66,161.65,3.23]
[1754247391322,3.49,161.66,161.64,6.1862]
[1754247391523,3.49,161.65,161.64,9.4162]
[1754247391718,3.49,161.65,161.63,5.20830577]
[1754247391924,3.49,161.65,161.62,15.70167199]
[1754247392921,3.49,161.64,161.62,5.20830577]
[1754247393821,3.49,161.64,161.62,8.43830577]
[1754247394022,6.91602509,161.73,161.63,9.45022605]
[1754247394227,3.49,161.71,161.68,3.23]
[1754247394427,4.49443604,161.7,161.68,3.23]
[1754247394626,7.98443604,161.69,161.68,3.23]
[1754247396924,4.49443604,161.69,161.68,9.4146]
[1754247397420,3.49,161.71,161.68,3.23]
[1754247397620,4.49469602,161.7,161.69,9.4143]
[1754247398625,3.49,161.71,161.69,9.4143]
[1754247398927,3.49,161.71,161.7,3.23]
[1754247401922,6.1828,161.73,161.69,12.40452605]
[1754247402125,3.49,161.72,161.69,6.22022605]
[1754247404230,3.49,161.72,161.69,9.63022605]
[1754247407534,3.49,161.72,161.69,15.81442605]
[1754247407735,3.5,161.74,161.7,3.41]
[1754247408035,3.5,161.73,161.72,3.41]
[1754247408726,3.5,161.74,161.72,3.41]
[1754247408932,3.5,161.74,161.72,9.5931]
[1754247409132,3.5,161.74,161.73,3.41]
[1754247409629,3.5,161.74,161.72,3.41]
[1754247409831,3.5,161.73,161.72,3.41]
[1754247411729,6.1816,161.76,161.71,12.40362605]
[1754247411930,4.70028502,161.75,161.74,3.41]
[1754247412235,4.70028502,161.75,161.74,9.63022605]
[1754247412433,3.5,161.76,161.75,3.41]
[1754247413226,6.1802,161.8,161.75,9.5917]
[1754247413431,3.5,161.78,161.76,3.41]
[1754247414134,3.5,161.78,161.75,6.1817]
[1754247414342,3.5,161.78,161.75,9.5917]
[1754247414837,3.5,161.78,161.75,3.41]
[1754247415830,3.5,161.78,161.76,3.41]
[1754247416039,3.5,161.79,161.76,3.41]
[1754247416239,3.5,161.79,161.77,3.41]
[1754247417245,114.04,161.84,161.77,3.41]
[1754247417246,3.5,161.81,161.77,3.41]
[1754247417436,3.5,161.86,161.8,6.22022605]
[1754247417946,3.5,161.86,161.82,3.41]
[1754247418145,3.5,161.86,161.82,9.63022605]
[1754247418346,3.5,161.86,161.83,3.41]
[1754247422648,3.5,161.86,161.83,9.5889]
[1754247423449,3.5,161.89,161.84,6.22022605]
[1754247423648,3.5,161.88,161.86,6.22022605]
[1754247423844,21.17576104,161.93,161.87,9.5873]
[1754247423845,3.5,161.89,161.87,9.5873]
[1754247424052,113.8,161.95,161.88,9.63022605]
[1754247424242,3.5,161.96,161.89,3.41]
[1754247424448,3.5,161.96,161.9,6.22022605]
[1754247425451,3.5,161.93,161.9,9.63022605]
[1754247427250,9.6752,161.93,161.9,9.63022605]
[1754247427454,3.5,161.92,161.9,9.63022605]
[1754247427839,3.5,161.91,161.9,9.63022605]
[1754247429045,113.84,161.97,161.9,9.63022605]
[1754247429249,3.5,161.93,161.9,6.22022605]
[1754247429449,3.5,161.93,161.92,3.41]
[1754247430451,3.5,161.93,161.91,9.63022605]
[1754247430649,3.5,161.92,161.91,9.63022605]
[1754247432456,3.5,161.92,161.88,3.41]
[1754247432753,3.5,161.92,161.87,9.63022605]
[1754247432955,3.5,161.92,161.87,6.22022605]
[1754247433254,3.5,161.92,161.86,6.22022605]
[1754247433644,6.1758,161.92,161.87,3.41]
[1754247433952,6.1758,161.92,161.86,12.39772605]
[1754247433953,3.41,161.91,161.86,12.39772605]
[1754247434154,3.41,161.91,161.86,15.69772605]
[1754247434654,9.586,161.91,161.86,15.69772605]
[1754247434851,6.22022605,161.95,161.86,6.22022605]
[1754247434852,3.41,161.9,161.86,6.22022605]
[1754247435257,9.5865,161.9,161.84,3.3]
[1754247435558,3.41,161.89,161.84,9.52022605]
[1754247436256,3.41,161.89,161.85,3.3]
[1754247436454,3.41,161.89,161.86,3.3]
[1754247436759,3.41,161.89,161.84,6.22022605]
[1754247436760,3.41,161.88,161.85,3.3]
[1754247437154,3.41,161.88,161.85,9.4781]
[1754247438952,3.41,161.88,161.86,3.3]
[1754247439152,3.41,161.88,161.85,6.1781]
[1754247439352,3.41,161.88,161.85,9.4781]
[1754247439656,3.41,161.88,161.85,3.3]
[1754247441359,3.41,161.88,161.85,9.4781]
[1754247444058,3.41,161.88,161.86,3.3]
[1754247446363,3.41,161.88,161.85,6.1781]
[1754247446756,3.41,161.88,161.84,9.4785]
[1754247447558,3.41,161.88,161.84,6.1785]
[1754247447759,3.41,161.88,161.84,9.4785]
[1754247449166,9.5871,161.88,161.84,9.4785]
[1754247449461,3.41,161.87,161.84,9.4785]
[1754247449765,3.41,161.87,161.85,3.3]
[1754247450366,6.1778,161.86,161.39,55.55404483]
[1754247450563,3.41,161.85,161.82,3.3]
[1754247451665,6.22022605,161.91,161.77,113.5]
[1754247451875,3.41,161.84,161.82,3.3]
[1754247452058,6.22022605,161.89,161.82,3.3]
[1754247452258,3.41,161.83,161.82,3.3]
[1754247452765,6.1771,161.88,161.81,6.22022605]
[1754247452963,3.41,161.86,161.84,3.3]
[1754247454170,3.41,161.86,161.84,9.4782]
[1754247454360,3.41,161.86,161.84,6.1782]
[1754247454565,3.41,161.86,161.85,3.3]
[1754247459467,3.41,161.88,161.85,3.3]
[1754247459665,3.41,161.87,161.85,3.3]
[1754247460080,3.41,161.87,161.86,3.3]
[1754247460479,3.41,161.87,161.86,9.4778]
[1754247462378,3.41,161.89,161.87,9.4774]
[1754247462781,6.176,161.91,161.85,6.22022605]
[1754247462782,3.41,161.94,161.86,3.3]
[1754247462983,3.41,161.94,161.82,5.18718402]
[1754247462984,3.41,161.94,161.88,3.3]
[1754247463374,3.41,161.94,161.88,9.4767]
[1754247463575,3.41,161.94,161.88,3.3]
[1754247464289,9.585,161.94,161.89,6.1765]
[1754247464484,3.42,161.93,161.89,6.1765]
[1754247465683,3.42,161.92,161.88,9.4769]
[1754247466186,3.42,161.92,161.89,3.49]
[1754247466377,3.42,161.92,161.89,9.6666]
[1754247466893,3.42,161.92,161.89,3.49]
[1754247467890,3.42,161.92,161.89,6.1766]
[1754247468096,3.42,161.94,161.9,3.49]
[1754247468493,3.42,161.94,161.91,6.22022605]
[1754247468793,3.42,161.94,161.92,3.49]
[1754247469396,3.42,161.93,161.92,3.49]
[1754247469901,3.42,161.93,161.91,9.71022605]
[1754247470095,3.42,161.93,161.91,6.22022605]
[1754247470298,3.42,161.93,161.9,3.49]
[1754247471295,3.42,161.92,161.9,3.49]
[1754247471804,3.42,161.94,161.91,3.49]
[1754247472001,3.42,161.94,161.92,3.49]
[1754247473599,3.42,161.93,161.92,3.49]
[1754247475194,3.42,161.93,161.92,9.6655]
[1754247475393,3.42,161.95,161.93,3.42]
[1754247475689,3.42,161.95,161.94,3.49]
[1754247476392,3.42,161.98,161.94,3.49]
[1754247477391,3.42,161.98,161.94,6.1745]
[1754247477601,3.42,161.98,161.95,3.49]
[1754247483106,3.42,161.97,161.93,12.39522605]
[1754247483310,3.42,161.97,161.94,3.49]
[1754247485105,3.42,161.96,161.93,6.22022605]
[1754247486910,3.42,161.96,161.94,3.49]
[1754247487712,120.27602509,162.03,161.93,12.39532605]
[1754247487713,3.42,161.95,161.93,12.39532605]
[1754247488408,3.42,161.95,161.94,3.49]
[1754247488611,6.1732,161.98,161.94,3.49]
[1754247488612,3.42,161.97,161.94,3.49]
[1754247489312,3.42,161.97,161.93,12.39532605]
[1754247489613,3.42,161.97,161.94,3.49]
[1754247490613,3.42,161.97,161.94,9.71022605]
[1754247490808,3.42,161.96,161.92,6.22022605]
[1754247491011,3.42,161.96,161.93,3.49]
[1754247492915,3.42,161.96,161.94,3.49]
[1754247495215,3.42,161.96,161.92,12.39552605]
[1754247495415,3.42,161.96,161.93,3.48]
[1754247496116,6.22022605,162.0,161.86,3.48]
[1754247496418,3.53,161.99,161.9,6.22022605]
[1754247496609,3.53,161.99,161.9,12.39612605]
[1754247496610,6.1746,161.95,161.9,12.39612605]
[1754247496809,3.53,161.97,161.89,9.70022605]
[1754247497205,6.175,161.94,161.89,15.87652605]
[1754247497412,3.53,161.93,161.9,3.48]
[1754247498914,3.53,161.93,161.9,9.6562]
[1754247499314,3.53,161.93,161.91,3.48]
[1754247503425,6.1744,161.95,161.9,6.1762]
[1754247503621,6.1744,161.95,161.9,9.6562]
[1754247503622,3.53,161.92,161.9,9.6562]
[1754247503816,6.1744,161.95,161.91,3.48]
[1754247504119,3.53,161.94,161.91,3.48]
[1754247508830,3.53,161.94,161.91,9.6558]
[1754247509125,3.53,161.97,161.94,3.48]
[1754247509429,3.53,161.96,161.94,3.48]
[1754247510419,3.53,162.0,161.94,3.48]
[1754247510625,6.1735,161.98,161.95,3.98413292]
[1754247510924,3.53,161.97,161.95,3.98413292]
[1754247511325,3.53,161.97,161.95,7.46413292]
[1754247512631,3.53,161.97,161.95,3.48]
[1754247512929,3.53,161.97,161.94,9.70480231]
[1754247516034,3.53,161.95,161.91,6.22480231]
[1754247516334,3.53,161.95,161.92,3.48]
[1754247516725,10.44602509,161.98,161.91,6.22480231]
[1754247516931,3.53,161.97,161.9,3.48]
[1754247518034,4.64795409,161.96,161.9,3.48]
[1754247518231,6.1751,161.94,161.9,3.48]
[1754247518432,3.53,161.92,161.9,3.48]
[1754247518633,8.17795409,161.91,161.9,3.48]
[1754247521143,8.17795409,161.91,161.88,3.48]
[1754247521144,3.53,161.9,161.88,3.48]
[1754247521342,3.53,161.9,161.89,3.48]
[1754247521639,8.17681191,161.9,161.89,3.48]
[1754247522032,3.53,161.9,161.89,3.48]
[1754247522234,3.53,161.9,161.87,9.70480231]
[1754247522438,3.53,161.9,161.88,3.48]
[1754247526145,3.4,161.89,161.87,12.40210231]
[1754247526745,3.4,161.89,161.88,3.4]
[1754247534348,6.22480231,161.96,161.88,3.4]
[1754247534552,3.4,161.94,161.91,3.4]
[1754247534852,4.62836601,161.93,161.92,3.98572]
[1754247535452,8.02836601,161.93,161.92,3.98572]
[1754247538657,14.20346601,161.93,161.92,3.98572]
[1754247540253,6.1758,161.92,161.88,6.1769]
[1754247540557,3.4,161.92,161.89,7.38572]
[1754247541660,9.5754,161.93,161.89,3.98572]
[1754247541956,3.4,161.91,161.9,3.4]
[1754247542351,3.4,161.91,161.9,7.38572]
[1754247542952,3.4,161.91,161.9,3.98572]
[1754247544059,3.4,161.91,161.9,7.38572]
[1754247546461,3.4,161.92,161.9,3.98572]
[1754247546661,3.4,161.92,161.91,3.4]
[1754247546963,8.02889546,161.92,161.91,3.4]
[1754247547257,3.4,161.97,161.91,3.4]
[1754247547460,3.4,161.97,161.95,3.98572]
[1754247547660,9.5741,161.96,161.95,3.98572]
[1754247560571,9.5741,161.96,161.95,7.43572]
[1754247561471,9.5741,161.96,161.95,3.98572]
[1754247571371,9.4243,161.95,161.94,7.43572]
[1754247576472,6.1757,161.92,161.91,3.98572]
[1754247576873,6.1757,161.92,161.91,7.43572]
[1754247577073,9.4257,161.92,161.91,3.98572]
[1754247577973,14.04510066,161.92,161.91,3.98572]
[1754247578175,6.1762,161.9,161.89,7.43572]
[1754247578479,9.4262,161.9,161.89,7.43572]
[1754247579182,3.25,161.9,161.89,7.43572]
[1754247580783,3.25,161.9,161.87,3.45]
[1754247580978,3.25,161.9,161.86,7.43572]
[1754247581174,6.1769,161.89,161.86,3.98572]
[1754247581479,3.25,161.88,161.87,3.45]
[1754247582884,7.87010254,161.88,161.87,3.45]
[1754247583386,3.25,161.88,161.87,3.45]
[1754247584278,3.35,161.89,161.87,3.45]
[1754247584479,3.35,161.89,161.88,7.26572]
[1754247584681,4.61798283,161.89,161.88,7.26572]
[1754247584987,9.5258,161.92,161.89,3.28]
[1754247585182,4.61749562,161.91,161.9,7.26572]
[1754247585688,9.5258,161.92,161.91,3.28]
[1754247588885,3.35,161.92,161.91,3.28]
[1754247589589,3.35,161.95,161.92,3.28]
[1754247589785,3.35,161.95,161.93,3.98572]
[1754247589979,3.35,161.95,161.93,7.26572]
[1754247590384,9.5246,161.95,161.93,7.26572]
[1754247590580,3.35,161.94,161.93,7.26572]
[1754247590790,3.35,161.95,161.93,7.26572]
[1754247590992,3.35,161.95,161.94,3.28]
[1754247592790,3.35,161.95,161.93,3.28]
[1754247593091,6.174,161.96,161.93,3.28]
[1754247593281,3.35,161.94,161.93,3.28]
[1754247596488,6.1741,161.96,161.93,3.28]
[1754247596694,3.35,161.95,161.93,3.28]
[1754247597493,3.35,161.95,161.93,6.175]
[1754247597793,3.35,161.95,161.94,3.28]
[1754247598187,3.35,161.95,161.94,15.68049252]
[1754247598694,3.35,161.96,161.94,12.40049252]
[1754247598892,3.35,161.96,161.95,3.28]
[1754247601088,6.1733,161.98,161.95,3.28]
[1754247601294,3.35,162.02,161.96,6.22579252]
[1754247601600,6.1729,161.99,161.97,3.28]
[1754247601902,3.35,161.98,161.97,3.28]
[1754247602100,3.35,161.97,161.96,6.22579252]
[1754247602497,3.35,161.97,161.92,9.50579252]
[1754247602895,3.35,161.97,161.96,6.22579252]
[1754247603100,3.35,162.02,161.97,3.28]
[1754247603403,3.35,162.02,161.99,3.28]
[1754247603594,3.35,162.02,161.96,9.50579252]
[1754247603902,3.35,161.98,161.97,3.28]
[1754247604097,7.93660854,161.98,161.97,3.28]
[1754247604598,3.35,161.98,161.97,3.28]
[1754247605099,3.35,161.98,161.96,6.22579252]
[1754247605300,3.35,161.98,161.96,9.50579252]
[1754247605801,3.35,161.99,161.97,3.28]
[1754247606903,6.1726,162.0,161.97,3.28]
[1754247607103,3.35,161.99,161.97,3.28]
[1754247614710,3.35,161.99,161.98,3.98212319]
[1754247619214,6.172,162.02,161.98,3.98212319]
[1754247619522,3.43,162.03,162.0,3.98212319]
[1754247619817,3.98212319,162.03,161.98,3.98212319]
[1754247620014,3.43,162.02,162.0,3.98212319]
[1754247621209,9.6023,162.01,162.0,3.98212319]
[1754247621413,3.43,162.01,162.0,3.98212319]
[1754247622517,3.43,162.01,162.0,7.34212319]
[1754247623022,3.43,162.01,162.0,3.98212319]
[1754247624116,3.43,162.01,162.0,7.34212319]
[1754247624832,3.43,162.01,162.0,3.98212319]
[1754247626428,3.43,162.04,162.01,3.36]
[1754247626630,3.43,162.04,162.0,3.98212319]
[1754247626827,3.43,162.04,162.0,7.34212319]
[1754247627223,3.43,162.02,162.0,7.34212319]
[1754247628330,3.43,162.02,162.01,3.36]
[1754247629926,3.43,162.02,162.01,7.34212319]
[1754247630736,3.43,162.02,162.01,3.36]
[1754247631032,3.43,162.02,162.01,3.98212319]
[1754247631229,3.43,162.02,162.01,7.34212319]
[1754247631733,3.43,162.05,162.02,3.36]
[1754247632032,3.43,162.05,162.03,7.34212319]
[1754247633434,6.1708,162.05,162.03,7.34212319]
[1754247633730,3.43,162.04,162.03,7.34212319]
[1754247636634,3.43,162.04,162.03,3.98212319]
[1754247638930,6.171,162.05,162.03,3.98212319]
[1754247639133,9.601,162.05,162.04,3.98212319]
[1754247639933,3.43,162.05,162.03,7.34212319]
[1754247640136,3.43,162.05,162.04,3.98212319]
[1754247640443,3.43,162.05,162.04,7.34212319]
[1754247640940,3.43,162.08,162.04,3.98212319]
[1754247641242,3.43,162.07,162.06,7.34212319]
[1754247641430,3.43,162.07,162.06,3.98212319]
[1754247642037,3.43,162.07,162.06,7.34212319]
[1754247642741,6.1699,162.08,162.06,3.98212319]
[1754247642934,3.43,162.07,162.06,3.98212319]
[1754247643340,3.43,162.08,162.07,3.36]
[1754247643542,6.91602509,162.16,162.07,3.98212319]
[1754247643738,10.37403764,162.18,162.02,5.17687347]
[1754247643739,3.43,162.13,162.12,7.24212319]
[1754247644244,3.29,162.13,162.12,7.24212319]
[1754247644536,3.29,162.13,162.12,3.98212319]
[1754247644838,3.29,162.12,162.1,6.21177199]
[1754247645246,3.29,162.12,162.11,6.1684]
[1754247645542,3.29,162.12,162.1,6.21177199]
[1754247645738,3.29,162.11,162.1,6.21177199]
[1754247646146,3.29,162.11,162.06,6.21177199]
[1754247646338,3.29,162.11,162.06,9.47177199]
[1754247646534,3.29,162.09,162.04,12.38267199]
[1754247646739,3.29,162.09,162.02,6.21177199]
[1754247646941,3.29,162.09,162.0,6.21177199]
[1754247647143,6.21177199,162.1,162.01,3.26]
[1754247647144,3.29,162.05,162.01,3.26]
[1754247647739,3.29,162.05,162.01,9.432]
[1754247648043,3.29,162.05,162.01,6.172]
[1754247648245,3.29,162.05,162.02,3.26]
[1754247648643,3.29,162.05,162.0,3.26]
[1754247649155,28.91403764,162.14,161.98,9.47177199]
[1754247649156,6.1716,162.03,161.98,9.47177199]
[1754247649451,6.21177199,162.06,161.92,94.29113707]
[1754247649452,3.29,162.02,161.96,6.21177199]
[1754247649653,3.29,162.02,161.98,3.26]
[1754247649954,3.29,162.01,161.96,6.21177199]
[1754247650156,3.29,162.01,161.97,3.26]
[1754247650447,3.29,162.0,161.97,3.26]
[1754247650748,6.1745,161.96,161.91,3.26]
[1754247650946,3.29,161.99,161.91,3.26]
[1754247652047,3.29,161.96,161.9,6.21177199]
[1754247652347,3.29,161.96,161.93,3.26]
[1754247654049,3.29,162.01,161.94,3.26]
[1754247654553,3.29,161.99,161.95,3.26]
[1754247656453,6.1731,161.99,161.95,3.26]
[1754247656646,3.29,161.98,161.95,3.26]
[1754247657753,3.29,161.99,161.92,3.26]
[1754247657958,6.21177199,161.98,161.89,3.26]
[1754247658154,3.29,161.97,161.89,3.26]
[1754247658455,3.29,161.95,161.91,3.26]
[1754247658954,3.29,161.94,161.89,3.26]
[1754247659254,3.29,161.94,161.88,6.21177199]
[1754247659451,3.29,161.94,161.91,3.26]
[1754247660157,3.29,161.94,161.89,6.1766]
[1754247660158,3.29,161.93,161.92,3.26]
[1754247660354,3.29,161.93,161.88,6.21177199]
[1754247660355,6.21177199,161.99,161.9,6.21177199]
[1754247660548,3.29,161.94,161.93,3.26]
[1754247662253,3.29,161.94,161.91,6.1761]
[1754247662455,3.29,161.93,161.92,3.26]
[1754247663857,3.29,161.92,161.91,3.26]
[1754247664653,3.29,161.92,161.89,3.26]
[1754247665062,3.29,161.92,161.86,6.21177199]
[1754247665264,3.29,161.92,161.86,3.26]
[1754247666054,3.29,161.9,161.86,3.26]
[1754247667262,3.29,161.9,161.87,6.1776]
[1754247667560,3.29,161.89,161.88,3.26]
[1754247670660,3.29,161.89,161.87,6.1776]
[1754247670859,3.29,161.89,161.87,3.26]
[1754247671062,3.29,161.88,161.87,3.26]
[1754247671565,3.29,161.88,161.87,9.4375]
[1754247671764,3.29,161.88,161.87,3.26]
[1754247672161,3.29,161.88,161.82,113.1]
[1754247672356,3.29,161.88,161.84,3.26]
[1754247672560,3.29,161.88,161.83,3.26]
[1754247673162,3.29,161.88,161.85,6.1781]
[1754247673366,3.29,161.88,161.85,9.4381]
[1754247676068,3.29,161.88,161.85,6.1781]
[1754247676369,3.29,161.88,161.84,9.5487]
[1754247677571,3.29,161.88,161.85,6.1783]
[1754247677767,3.53,161.92,161.87,3.37]
[1754247677972,3.53,161.92,161.9,3.37]
[1754247678269,6.1745,161.96,161.91,6.1758]
[1754247678471,3.53,161.95,161.91,9.5458]
[1754247679075,3.53,161.95,161.91,6.1758]
[1754247679266,3.53,161.95,161.92,3.37]
[1754247680865,3.53,161.94,161.91,3.37]
[1754247681864,3.53,161.94,161.91,9.5461]
[1754247682568,3.53,161.94,161.91,3.37]
[1754247682776,3.53,161.94,161.85,113.14]
[1754247682777,3.53,161.93,161.87,3.37]
[1754247683171,3.53,161.92,161.89,3.37]
[1754247683872,3.53,161.91,161.88,3.37]
[1754247684275,3.53,161.91,161.88,9.5472]
[1754247684471,3.53,161.91,161.89,3.37]
[1754247685365,3.53,161.91,161.88,6.1773]
[1754247685570,3.53,161.91,161.87,6.21177199]
[1754247685771,3.53,161.91,161.89,3.37]
[1754247686274,18.54,162.01,161.89,3.37]
[1754247686474,6.21177199,161.96,161.89,3.37]
[1754247686876,3.53,161.95,161.89,3.37]
[1754247687474,3.53,161.95,161.89,9.5469]
[1754247688186,6.1756,161.93,161.89,9.5469]
[1754247688378,3.53,161.92,161.89,9.5469]
[1754247688677,3.53,161.92,161.88,6.1774]
[1754247688872,6.176,161.92,161.88,3.37]
[1754247689077,3.53,161.91,161.88,6.1773]
[1754247689277,6.21177199,161.96,161.89,3.37]
[1754247689477,3.53,161.9,161.89,3.37]
[1754247691478,3.53,161.9,161.86,9.5478]
[1754247693381,3.53,161.9,161.88,3.37]
[1754247693880,3.53,161.9,161.87,6.1778]
[1754247694175,3.53,161.9,161.87,9.5478]
[1754247696983,3.53,161.9,161.87,3.37]
[1754247697180,3.53,161.9,161.86,9.5481]
[1754247698078,3.53,161.88,161.84,6.1787]
[1754247698379,3.53,161.88,161.84,3.37]
[1754247698586,3.53,161.86,161.85,3.37]
[1754247698983,8.1051625,161.86,161.85,3.37]
[1754247699180,4.5751625,161.86,161.85,15.76037199]
[1754247699478,3.53,161.92,161.86,3.37]
[1754247699680,3.53,161.92,161.89,6.21177199]
[1754247699882,13.12779708,161.98,161.9,3.37]
[1754247700081,3.53,161.97,161.9,3.37]
[1754247700273,3.53,161.97,161.9,9.5464]
[1754247700786,6.1748,161.95,161.91,6.1762]
[1754247700988,3.53,161.94,161.91,9.5462]
[1754247701481,3.53,161.93,161.92,3.37]
[1754247701879,3.53,161.96,161.92,3.37]
[1754247702075,3.53,161.96,161.94,3.37]
[1754247702785,3.53,161.96,161.95,9.5448]
[1754247702981,6.173,162.0,161.95,9.5448]
[1754247703186,6.91602509,162.01,161.98,3.37]
[1754247703384,3.53,162.0,161.99,3.37]
[1754247704086,6.91602509,162.05,161.98,6.1733]
[1754247704283,3.51,161.99,161.98,3.19]
[1754247704791,3.51,161.99,161.98,9.3636]
[1754247706191,3.51,162.01,161.99,6.1732]
[1754247706488,3.51,162.02,161.98,3.19]
[1754247706993,6.21177199,162.0,161.92,3.19]
[1754247707188,3.51,161.99,161.92,3.19]
[1754247707383,3.51,161.98,161.94,3.19]
[1754247707587,3.51,161.97,161.96,9.3644]
[1754247707893,3.51,162.02,161.96,9.3644]
[1754247709290,3.51,162.0,161.96,9.3644]
[1754247709489,3.51,162.0,161.96,3.19]
[1754247710097,9.683,162.0,161.96,3.19]
[1754247710292,3.51,161.99,161.96,9.3643]
[1754247710490,3.51,161.99,161.94,3.19]
[1754247711089,3.51,161.99,161.93,6.21177199]
[1754247711294,3.51,161.99,161.95,3.19]
[1754247712192,9.6833,161.99,161.95,9.3647]
[1754247712391,3.51,161.98,161.95,9.3647]
[1754247712796,6.1737,161.98,161.94,6.1751]
[1754247712992,3.51,161.97,161.93,6.21177199]
[1754247713299,3.51,161.97,161.94,3.19]
[1754247713492,3.51,161.96,161.95,3.19]
[1754247714201,3.51,161.96,161.95,9.3647]
[1754247715394,3.51,161.94,161.91,9.40177199]
[1754247715799,3.51,161.93,161.92,3.19]
[1754247716093,3.51,161.93,161.92,9.3657]
[1754247716600,3.51,161.95,161.93,3.19]